fUSD/lending_fUSD_20260428
["ID","MTS","AMOUNT","RATE_DAILY","PERIOD"]
[421290362,1777359822675,-250.0,9.75e-05,2]
[421290363,1777359822943,-250.0,9.884e-05,2]
[421290364,1777359822965,-250.0,9.9e-05,2]
[421290365,1777359823049,-175.0,9.9e-05,2]
[421290366,1777359823113,-75.0,9.9e-05,2]
[421290367,1777359823134,-1200.0,0.00010019,2]
[421290368,1777359823155,-268.0,0.00010019,2]
[421290369,1777359823176,-1125.0,0.00010019,2]
[421290370,1777360001005,250.0,9.6e-05,2]
[421290373,1777360231743,-250.0,9.6e-05,2]
[421290374,1777360231753,-76.03172292,0.0001,3]
[421290375,1777360231797,-928.96827708,0.0001,3]
[421290376,1777360231807,-156.0,0.0001,3]
[421290377,1777360231817,-242.0,0.00010019,2]
[421290378,1777360231827,-1200.0,0.00010019,2]
[421290379,1777360231836,-150.0,0.0001002,2]
[421290380,1777360231846,-1200.0,0.0001002,2]
[421290381,1777360231855,-3587.46,0.00010021,2]
[421290382,1777360231864,-2294.65,0.00010021,2]
[421290383,1777360231873,-11350.48,0.00010021,2]
[421290384,1777360231883,-500.0,0.00010219,2]
[421290385,1777360231892,-181920.10364444,0.00010329,2]
[421290386,1777360231903,-11176.38606438,0.00010329,2]
[421290387,1777360231915,-38065.07211958,0.00010329,2]
[421290388,1777360231926,-114486.28068224,0.00010329,2]
[421290389,1777360231937,-1254.41808677,0.00010329,2]
[421290390,1777360231948,-2800.96661148,0.00010329,2]
[421290391,1777360231959,-819.56436745,0.00010329,2]
[421290392,1777360231971,-4675.92415367,0.00010329,2]
[421290393,1777360231982,-1295.9148631,0.00010329,2]
[421290394,1777360231993,-264.00221638,0.00010329,2]
[421290395,1777360232004,-2551.11025438,0.00010329,2]
[421290396,1777360232016,-595.27753254,0.00010329,2]
[421290397,1777360232028,-540.40776292,0.00010329,2]
[421290398,1777360232040,-323.3292545,0.00010329,2]
[421290399,1777360232055,-267.37735194,0.00010329,2]
[421290400,1777360232067,-2424.07895351,0.00010329,2]
[421290401,1777360232081,-257.8752,0.00010329,2]
[421290402,1777360232092,-2993.88054873,0.00010329,2]
[421290410,1777360237616,-616.27273743,0.00010328,2]
[421290411,1777360237626,-473.6473882,0.00010328,2]
[421290412,1777360237636,-132.20281286,0.00010328,2]
[421290413,1777360237670,-367.79718714,0.00010328,2]
[421290414,1777360237680,-500.0,0.00010328,2]
[421290415,1777360237691,-113.47601633,0.00010328,2]
[421290416,1777360237848,-126.96050505,0.00010328,2]
[421290475,1777360240270,-259.56347862,0.00010328,2]
[421290476,1777360240280,-500.0,0.00010328,2]
[421290477,1777360240289,-500.0,0.00010328,2]
[421290478,1777360240298,-500.0,0.00010328,2]
[421290479,1777360240307,-500.0,0.00010328,2]
[421290480,1777360240316,-500.0,0.00010328,2]
[421290481,1777360240327,-500.0,0.00010328,2]
[421290482,1777360240336,-500.0,0.00010328,2]
[421290483,1777360240345,-500.0,0.00010328,2]
[421290484,1777360240354,-500.0,0.00010328,2]
[421290485,1777360240363,-500.0,0.00010328,2]
[421290486,1777360240372,-500.0,0.00010328,2]
[421290487,1777360240381,-500.0,0.00010328,2]
[421290488,1777360240389,-500.0,0.00010328,2]
[421290489,1777360240398,-500.0,0.00010328,2]
[421290490,1777360240408,-500.0,0.00010328,2]
[421290491,1777360240418,-500.0,0.00010328,2]
[421290492,1777360240427,-500.0,0.00010328,2]
[421290493,1777360240436,-500.0,0.00010328,2]
[421290494,1777360240445,-500.0,0.00010328,2]
[421290495,1777360240454,-500.0,0.00010328,2]
[421290496,1777360240464,-500.0,0.00010328,2]
[421290497,1777360240473,-500.0,0.00010328,2]
[421290498,1777360240483,-210.70577091,0.00010328,2]
[421290518,1777360242654,-289.29422909,0.00010328,2]
[421290519,1777360242664,-500.0,0.00010328,2]
[421290520,1777360242674,-500.0,0.00010328,2]
[421290521,1777360242684,-500.0,0.00010328,2]
[421290522,1777360242694,-500.0,0.00010328,2]
[421290523,1777360242703,-500.0,0.00010328,2]
[421290524,1777360242713,-500.0,0.00010328,2]
[421290525,1777360242722,-500.0,0.00010328,2]
[421290526,1777360242731,-3686.20741117,0.00010329,2]
[421290527,1777360242743,-85383.05664866,0.00010329,2]
[421290528,1777360242755,-658.88696035,0.00010329,2]
[421290529,1777360242767,-20279.50605604,0.00010329,2]
[421290530,1777360242866,-443.4506406,0.00010329,2]
[421290534,1777360245948,-35043.10208652,0.00010329,2]
[421290535,1777360246057,-1284.6678,0.00010329,2]
[421290536,1777360246068,-37817.5474248,0.00010329,2]
[421290537,1777360246169,-93535.52815398,0.00010329,2]
[421290540,1777360635757,-243.0,0.00010326,2]
[421290541,1777360635777,-224.01888329,0.00010326,2]
[421290542,1777360635798,-1200.0,0.00010327,2]
[421290543,1777360635818,-150.0,0.00010327,2]
[421290544,1777360635838,-680.93,0.00010328,2]
[421290545,1777360635863,-500.0,0.00010328,2]
[421290546,1777360635887,-500.0,0.00010328,2]
[421290547,1777360635912,-500.0,0.00010328,2]
[421290548,1777360635938,-500.0,0.00010328,2]
[421290549,1777360635962,-500.0,0.00010328,2]
[421290550,1777360635987,-500.0,0.00010328,2]
[421290551,1777360636012,-500.0,0.00010328,2]
[421290552,1777360636037,-500.0,0.00010328,2]
[421290553,1777360636063,-500.0,0.00010328,2]
[421290554,1777360636088,-500.0,0.00010328,2]
[421290555,1777360636113,-500.0,0.00010328,2]
[421290556,1777360636138,-500.0,0.00010328,2]
[421290557,1777360636162,-500.0,0.00010328,2]
[421290558,1777360636187,-500.0,0.00010328,2]
[421290559,1777360636212,-500.0,0.00010328,2]
[421290560,1777360636237,-2.05111671,0.00010328,2]
[421290561,1777360636560,-597.37942443,0.00010328,2]
[421290562,1777360636586,-500.0,0.00010328,2]
[421290563,1777360636611,-500.0,0.00010328,2]
[421290564,1777360636635,-500.0,0.00010328,2]
[421290565,1777360636660,-500.0,0.00010328,2]
[421290566,1777360636685,-500.0,0.00010328,2]
[421290567,1777360636710,-500.0,0.00010328,2]
[421290568,1777360636736,-500.0,0.00010328,2]
[421290569,1777360636762,-500.0,0.00010328,2]
[421290570,1777360636786,-500.0,0.00010328,2]
[421290571,1777360636812,-500.0,0.00010328,2]
[421290572,1777360636839,-500.0,0.00010328,2]
[421290573,1777360636865,-500.0,0.00010328,2]
[421290574,1777360636890,-500.0,0.00010328,2]
[421290575,1777360636915,-500.0,0.00010328,2]
[421290576,1777360636942,-500.0,0.00010328,2]
[421290577,1777360636966,-500.0,0.00010328,2]
[421290578,1777360636987,-1402.62057557,0.00010329,2]
[421290579,1777360637043,-10000.0,0.00010329,2]
[421290580,1777360637379,-10000.0,0.00010329,2]
[421290581,1777360637923,-9044.89893733,0.00010329,2]
[421290582,1777360637944,-156.0,0.00010329,3]
[421290583,1777360637965,-799.10106267,0.00010329,3]
[421290584,1777360638106,-155.89893733,0.00010329,3]
[421290585,1777360638130,-9844.10106267,0.00010329,2]
[421290586,1777360638436,-10000.0,0.00010329,2]
[421290587,1777360638953,-10000.0,0.00010329,2]
[421290588,1777360639373,-10000.0,0.00010329,2]
[421290589,1777360639799,-10000.0,0.00010329,2]
[421290590,1777360640201,-10000.0,0.00010329,2]
[421290591,1777360640601,-10000.0,0.00010329,2]
[421290592,1777360640966,-10000.0,0.00010329,2]
[421290593,1777360642007,-10000.0,0.00010329,2]
[421290594,1777360642971,-10000.0,0.00010329,2]
[421290595,1777360643725,-10000.0,0.00010329,2]
[421290596,1777360687031,-150.0,0.00010328,2]
[421290597,1777360687061,-4782.0,0.00010329,2]
[421290598,1777360687826,8552.603791,7.945e-05,2]
[421290599,1777360746726,907.0,7.945e-05,3]
[421290600,1777360806113,861.0,7.945e-05,3]
[421290601,1777360808058,156.0,7.945e-05,3]
[421290602,1777360867107,818.0,7.945e-05,3]
[421290603,1777360927769,777.0,7.945e-05,3]
[421290604,1777360993306,739.0,7.945e-05,3]
[421290605,1777361047292,214.687777,0.000166,120]
[421290606,1777361049873,702.0,7.945e-05,3]
[421290607,1777361111393,667.0,7.945e-05,3]
[421290608,1777361111891,156.0,7.945e-05,3]
[421290609,1777361167365,633.0,7.945e-05,3]
[421290610,1777361228803,602.0,7.945e-05,3]
[421290611,1777361287858,571.0,7.945e-05,3]
[421290612,1777361345229,543.0,7.945e-05,3]
[421290613,1777361405102,156.0,7.945e-05,3]
[421290614,1777361407018,516.0,7.945e-05,3]
[421290616,1777361431638,-516.0,9.784e-05,3]
[421290617,1777361431648,-152.0,9.843e-05,7]
[421290618,1777361431658,-500.0,0.00010226,2]
[421290619,1777361431667,-1200.0,0.00010228,2]
[421290620,1777361431677,-150.0,0.00010228,2]
[421290621,1777361431686,-140927.58015608,0.00010229,2]
[421290622,1777361432595,-300.19682994,0.00010229,2]
[421290641,1777361438035,-466.25649,0.00010229,2]
[421290656,1777361445904,-2907.65268232,0.00010229,2]
[421290657,1777361445960,-3082.98844166,0.00010229,2]
[421290658,1777361445970,-3037.9364258,0.00010229,2]
[421290659,1777361446017,-404.83682223,0.00010229,2]
[421290660,1777361446394,-7664.49925001,0.00010229,2]
[421290661,1777361446405,-5740.90391765,0.00010229,2]
[421290662,1777361446416,-12793.0746089,0.00010229,2]
[421290663,1777361446450,-13795.49347541,0.00010229,2]
[421290664,1777361446460,-156.0,0.00010275,3]
[421290665,1777361446469,-502.0,0.00010329,2]
[421290666,1777361446478,-13932.84596047,0.00010329,2]
[421290667,1777361446489,-4629.9288,0.00010329,2]
[421290691,1777361447733,-301.717,0.00010329,2]
[421290692,1777361447789,-369.88378391,0.00010329,2]
[421290694,1777361828403,5068.811991,7.945e-05,2]
[421290707,1777362631949,-275.0,9.684e-05,2]
[421290708,1777362631959,-299.268,9.684e-05,2]
[421290709,1777362631968,-300.0,9.831e-05,2]
[421290710,1777362631977,-300.0,9.951e-05,2]
[421290711,1777362631987,-262.0,9.951e-05,2]
[421290712,1777362631996,-1200.0,9.951e-05,2]
[421290713,1777362632006,-785985.23879378,9.952e-05,2]
[421290714,1777362632106,-55.18700622,9.952e-05,2]
[421290715,1777362632116,-150.0,9.953e-05,2]
[421290716,1777362632126,-75.44549382,9.953e-05,2]
[421290717,1777362632138,-224.55450618,9.953e-05,2]
[421290718,1777362632147,-47.47113222,9.954e-05,2]
[421290719,1777362632158,-361.04264806,9.954e-05,2]
[421290720,1777362632170,-91.48621972,9.954e-05,2]
[421290721,1777362632179,-500.0,9.954e-05,2]
[421290722,1777362632188,-500.0,9.954e-05,2]
[421290723,1777362632197,-250.32719022,9.954e-05,2]
[421290747,1777362640707,-172.43015538,9.951e-05,2]
[421290748,1777362640717,-301.50320295,9.951e-05,2]
[421290749,1777362640729,-198.49679705,9.951e-05,2]
[421290750,1777362640738,-408.10320435,9.951e-05,2]
[421290752,1777362640977,-91.89679565,9.951e-05,2]
[421290753,1777362641062,-518.26567883,9.951e-05,2]
[421290754,1777362641072,-500.0,9.951e-05,2]
[421290755,1777362641081,-500.0,9.951e-05,2]
[421290756,1777362641091,-224.47550547,9.951e-05,2]
[421290757,1777362641100,-500.0,9.951e-05,2]
[421290758,1777362641109,-500.0,9.951e-05,2]
[421290759,1777362641119,-500.0,9.951e-05,2]
[421290760,1777362641128,-500.0,9.951e-05,2]
[421290761,1777362641137,-500.0,9.951e-05,2]
[421290762,1777362641147,-500.0,9.951e-05,2]
[421290763,1777362641158,-500.0,9.951e-05,2]
[421290764,1777362641167,-500.0,9.951e-05,2]
[421290765,1777362641177,-500.0,9.951e-05,2]
[421290766,1777362641186,-358.72,9.951e-05,2]
[421290767,1777362641195,-500.0,9.951e-05,2]
[421290768,1777362641205,-500.0,9.951e-05,2]
[421290769,1777362641214,-500.0,9.951e-05,2]
[421290770,1777362641223,-500.0,9.951e-05,2]
[421290771,1777362641233,-500.0,9.951e-05,2]
[421290772,1777362641242,-500.0,9.951e-05,2]
[421290773,1777362641252,-500.0,9.951e-05,2]
[421290774,1777362641262,-500.0,9.951e-05,2]
[421290775,1777362641272,-216.52755351,9.951e-05,2]
[421290776,1777362641281,-500.0,9.951e-05,2]
[421290777,1777362641290,-500.0,9.951e-05,2]
[421290778,1777362641299,-500.0,9.951e-05,2]
[421290779,1777362641309,-500.0,9.951e-05,2]
[421290780,1777362641322,-500.0,9.951e-05,2]
[421290781,1777362641331,-500.0,9.951e-05,2]
[421290782,1777362641341,-500.0,9.951e-05,2]
[421290783,1777362641350,-500.0,9.951e-05,2]
[421290784,1777362641360,-500.0,9.951e-05,2]
[421290785,1777362641370,-500.0,9.951e-05,2]
[421290786,1777362641379,-500.0,9.951e-05,2]
[421290787,1777362641388,-500.0,9.951e-05,2]
[421290788,1777362641397,-500.0,9.951e-05,2]
[421290789,1777362641406,-500.0,9.951e-05,2]
[421290790,1777362641416,-500.0,9.951e-05,2]
[421290791,1777362641425,-500.0,9.951e-05,2]
[421290792,1777362641434,-500.0,9.951e-05,2]
[421290793,1777362641444,-249.67280978,9.954e-05,2]
[421290794,1777362641454,-500.0,9.954e-05,2]
[421290795,1777362641464,-500.0,9.954e-05,2]
[421290796,1777362641474,-150.0,9.954e-05,2]
[421290797,1777362641483,-232.84290672,9.954e-05,2]
[421290799,1777362643101,-267.15709328,9.954e-05,2]
[421290800,1777362643111,-500.0,9.954e-05,2]
[421290801,1777362643120,-179.54005283,9.954e-05,2]
[421290802,1777362643134,-500.0,9.954e-05,2]
[421290803,1777362643143,-500.0,9.954e-05,2]
[421290804,1777362643152,-223.69010116,9.954e-05,2]
[421290805,1777362643162,-500.0,9.954e-05,2]
[421290806,1777362643171,-500.0,9.954e-05,2]
[421290807,1777362643180,-447.58842795,9.954e-05,2]
[421290808,1777362643190,-150.0,0.00010052,2]
[421290809,1777362643199,-150.0,0.00010052,2]
[421290810,1777362643208,-150.0,0.00010052,2]
[421290811,1777362643217,-265.14027138,0.00010052,2]
[421290812,1777362643226,-150.0,0.00010052,2]
[421290813,1777362643235,-170.49964996,0.00010052,2]
[421290814,1777362643244,-150.0,0.00010052,2]
[421290815,1777362643253,-150.69588499,0.00010052,2]
[421290816,1777362643263,-567.44,0.00010052,2]
[421290817,1777362643272,-500.0,0.00010052,2]
[421290818,1777362643281,-500.0,0.00010052,2]
[421290819,1777362643291,-500.0,0.00010052,2]
[421290820,1777362643300,-500.0,0.00010052,2]
[421290821,1777362643309,-500.0,0.00010052,2]
[421290822,1777362643319,-500.0,0.00010052,2]
[421290823,1777362643328,-500.0,0.00010052,2]
[421290824,1777362643337,-500.0,0.00010052,2]
[421290825,1777362643347,-500.0,0.00010052,2]
[421290826,1777362643356,-500.0,0.00010052,2]
[421290827,1777362643366,-500.0,0.00010052,2]
[421290828,1777362643375,-500.0,0.00010052,2]
[421290829,1777362643384,-500.0,0.00010052,2]
[421290830,1777362643393,-500.0,0.00010052,2]
[421290831,1777362643403,-500.0,0.00010052,2]
[421290832,1777362643412,-500.0,0.00010052,2]
[421290833,1777362643421,-500.0,0.00010052,2]
[421290834,1777362643431,-421.15097354,0.00010052,2]
[421290835,1777362643441,-216.12589678,0.00010052,2]
[421290836,1777362643450,-500.0,0.00010052,2]
[421290837,1777362643460,-500.0,0.00010052,2]
[421290838,1777362643469,-500.0,0.00010052,2]
[421290839,1777362643479,-500.0,0.00010052,2]
[421290840,1777362643488,-500.0,0.00010052,2]
[421290841,1777362643497,-268.34076407,0.00010052,2]
[421290842,1777362643506,-500.0,0.00010052,2]
[421290843,1777362643516,-578.20924308,0.00010088,2]
[421290845,1777362643525,-151.0,0.00010088,2]
[421290847,1777362643534,-317.76257414,0.00010088,2]
[421290848,1777362643543,-161.26217039,0.000101,2]
[421290849,1777362643552,-184.04211265,0.000101,2]
[421290850,1777362643562,-180.01177325,0.000101,2]
[421290851,1777362643571,-186.0827411,0.000101,2]
[421290852,1777362643580,-200.0,0.000101,2]
[421290853,1777362643589,-477.4145,0.00010129,2]
[421290854,1777362643599,-152.0,0.00010135,7]
[421290855,1777362643608,-152.0,0.00010135,7]
[421290856,1777362643618,-151.0,0.00010143,2]
[421290857,1777362643628,-200.49984726,0.00010192,2]
[421290858,1777362643637,-151.0,0.00010198,2]
[421290859,1777362643647,-200.0,0.00010223,2]
[421290860,1777362643657,-1428.38747117,0.00010223,2]
[421290861,1777362643666,-151.0,0.00010223,2]
[421290862,1777362643676,-151.0,0.00010223,2]
[421290863,1777362643686,-151.0,0.00010223,2]
[421290864,1777362643695,-151.0,0.00010223,2]
[421290865,1777362643705,-151.0,0.00010223,2]
[421290866,1777362643715,-151.0,0.00010223,2]
[421290867,1777362643724,-151.0,0.00010223,2]
[421290868,1777362643734,-159.03148013,0.00010223,2]
[421290869,1777362643744,-233.7486097,0.00010227,2]
[421290870,1777362643754,-500.0,0.00010227,2]
[421290871,1777362643763,-450.90130574,0.00010227,2]
[421290872,1777362643772,-500.0,0.00010227,2]
[421290873,1777362643781,-500.0,0.00010227,2]
[421290874,1777362643791,-500.0,0.00010227,2]
[421290875,1777362643800,-572.69234051,0.00010227,2]
[421290876,1777362643809,-500.0,0.00010227,2]
[421290877,1777362643819,-609.85203119,0.00010227,2]
[421290878,1777362643828,-174.563,0.00010228,2]
[421290879,1777362643836,-2474.353,0.00010228,2]
[421290880,1777362643845,-152.0,0.00010231,7]
[421290881,1777362643855,-151.0,0.00010253,2]
[421290882,1777362643865,-500.0,0.00010273,2]
[421290883,1777362643874,-10004.4262026,0.00010275,2]
[421290884,1777362643883,-7922.7043185,0.00010275,2]
[421290885,1777362643893,-3088.253748,0.00010275,2]
[421290886,1777362643904,-6528.0384729,0.00010275,2]
[421290887,1777362643913,-134132.9042685,0.00010275,2]
[421290888,1777362643923,-151.0,0.00010308,2]
[421290889,1777362643932,-482.0,0.00010308,2]
[421290890,1777362643942,-567.44,0.00010326,2]
[421290891,1777362643951,-500.0,0.00010329,2]
[421290892,1777362643960,-156.0,0.00010329,3]
[421290893,1777362643970,-464.0,0.00010329,3]
[421290894,1777362643979,-822.0,0.00010349,2]
[421290895,1777362643988,-347.0,0.00010349,2]
[421290896,1777362643997,-151.0,0.00010363,2]
[421290897,1777362644007,-151.0,0.00010418,2]
[421290898,1777362644016,-2000.0,0.0001042,2]
[421290899,1777362644025,-151.0,0.00010473,2]
[421290900,1777362644034,-265.0,0.000105,2]
[421290901,1777362644043,-959.0,0.000105,2]
[421290902,1777362644054,-904.0,0.000105,2]
[421290903,1777362644064,-156.53338377,0.00010528,2]
[421290904,1777362644073,-200.14222073,0.00010528,2]
[421290905,1777362644082,-150.0000009,0.00010529,2]
[421290906,1777362644092,-200.53352621,0.0001053,2]
[421290907,1777362644101,-309.45825349,0.0001053,2]
[421290908,1777362644110,-2000.0,0.0001053,2]
[421290909,1777362644120,-2000.0,0.0001053,2]
[421290910,1777362644129,-2000.0,0.0001053,2]
[421290911,1777362644139,-2000.0,0.0001053,2]
[421290912,1777362644148,-2000.0,0.0001053,2]
[421290913,1777362644158,-150.0,0.00010553,2]
[421290914,1777362644167,-366.99,0.00010563,2]
[421290915,1777362644177,-1350.0,0.00010578,2]
[421290916,1777362644187,-1928.039,0.00010578,2]
[421290917,1777362644196,-1266.0,0.00010578,2]
[421290918,1777362644205,-6035.0,0.00010578,2]
[421290919,1777362644215,-1227.05,0.00010578,2]
[421290920,1777362644224,-1883.24381778,0.000106,2]
[421290921,1777362644233,-567.44,0.000106,2]
[421290922,1777362644243,-5000.0,0.000106,2]
[421290923,1777362644252,-250.0,0.00010652,2]
[421290924,1777362644262,-340.02248649,0.00010652,2]
[421290925,1777362644271,-195.81571941,0.00010652,2]
[421290926,1777362644281,-250.0,0.00010652,2]
[421290927,1777362644290,-191.98953898,0.00010652,2]
[421290928,1777362644299,-250.0,0.00010653,2]
[421290929,1777362644309,-250.0,0.00010653,2]
[421290930,1777362644318,-126253.3764297,0.000107,2]
[421290931,1777362644335,-13002.0,0.000107,2]
[421290935,1777362646574,-1858.12061989,0.000107,2]
[421290936,1777362646583,-200.53352621,0.000107,2]
[421290937,1777362646593,-154.72912674,0.000107,2]
[421290938,1777362646602,-200.0,0.00010771,2]
[421290939,1777362646611,-427.203591,0.00010771,2]
[421290940,1777362646620,-150.0,0.000108,2]
[421290941,1777362646630,-150.0,0.000108,2]
[421290942,1777362646639,-150.0,0.000108,2]
[421290943,1777362646648,-150.0,0.000108,2]
[421290944,1777362646656,-150.0,0.000108,2]
[421290945,1777362646666,-150.0,0.000108,2]
[421290946,1777362646676,-150.0,0.000108,2]
[421290947,1777362646685,-150.0,0.000108,2]
[421290948,1777362646694,-1000.0,0.00010821,2]
[421290949,1777362646703,-184.34186812,0.00010844,2]
[421290957,1777362932156,264.52740707,9.85e-05,21]
[421290962,1777363789800,-359.7863,9.584e-05,2]
[421290963,1777363789834,-250.0,9.585e-05,2]
[421290964,1777363789864,-875.325,9.586e-05,2]
[421290965,1777363789895,-300.0,9.589e-05,2]
[421290966,1777363789924,-250.0,9.598e-05,2]
[421290967,1777363789953,-198.028,9.731e-05,2]
[421290968,1777363789982,-5000.0,9.752e-05,2]
[421290969,1777363790010,-413.1,9.836e-05,2]
[421290970,1777363790040,-300.0,9.849e-05,2]
[421290971,1777363790070,-300.0,9.849e-05,2]
[421290972,1777363790102,-288.0,9.849e-05,2]
[421290973,1777363790132,-155.0,9.85e-05,2]
[421290974,1777363790165,-300.0,9.85e-05,2]
[421290975,1777363790196,-300.0,9.85e-05,2]
[421290976,1777363790227,-1200.0,9.85e-05,2]
[421290977,1777363790255,-340.46,9.851e-05,2]
[421290978,1777363790284,-174.563,9.851e-05,2]
[421290979,1777363790312,-1979.483,9.851e-05,2]
[421290980,1777363790341,-150.0,9.851e-05,2]
[421290981,1777363790373,-250.0,9.851e-05,2]
[421290982,1777363790404,-500.0,9.851e-05,2]
[421290983,1777363790434,-446.00366314,9.851e-05,2]
[421290984,1777363790464,-500.0,9.851e-05,2]
[421290985,1777363790778,-500.0,9.851e-05,2]
[421290986,1777363790814,-520.18790918,9.851e-05,2]
[421290987,1777363790849,-520.18790918,9.851e-05,2]
[421290988,1777363790885,-520.18790918,9.851e-05,2]
[421290989,1777363790919,-520.18790918,9.851e-05,2]
[421290990,1777363790954,-520.18790918,9.851e-05,2]
[421290991,1777363790989,-520.18790918,9.851e-05,2]
[421290992,1777363791023,-520.18790918,9.851e-05,2]
[421290993,1777363791058,-520.18790918,9.851e-05,2]
[421290994,1777363791091,-520.18790918,9.851e-05,2]
[421290995,1777363791125,-520.18790918,9.851e-05,2]
[421290996,1777363791159,-520.18790918,9.851e-05,2]
[421290997,1777363791193,-520.18790918,9.851e-05,2]
[421290998,1777363791229,-520.18790918,9.851e-05,2]
[421290999,1777363791263,-520.18790918,9.851e-05,2]
[421291000,1777363791296,-520.18790918,9.851e-05,2]
[421291001,1777363791331,-520.18790918,9.851e-05,2]
[421291002,1777363791366,-520.18790918,9.851e-05,2]
[421291003,1777363791400,-520.18790918,9.851e-05,2]
[421291004,1777363791435,-520.18790918,9.851e-05,2]
[421291005,1777363791470,-520.18790918,9.851e-05,2]
[421291006,1777363791504,-520.18790918,9.851e-05,2]
[421291007,1777363791538,-520.18790918,9.851e-05,2]
[421291008,1777363791571,-520.18790918,9.851e-05,2]
[421291009,1777363791605,-520.18790918,9.851e-05,2]
[421291010,1777363791639,-520.18790918,9.851e-05,2]
[421291011,1777363791674,-520.18790918,9.851e-05,2]
[421291012,1777363791708,-520.18790918,9.851e-05,2]
[421291013,1777363791743,-520.18790918,9.851e-05,2]
[421291014,1777363791784,-520.18790918,9.851e-05,2]
[421291015,1777363791818,-520.18790918,9.851e-05,2]
[421291016,1777363791853,-520.18790918,9.851e-05,2]
[421291017,1777363791887,-520.18790918,9.851e-05,2]
[421291018,1777363791922,-520.18790918,9.851e-05,2]
[421291019,1777363791957,-520.18790918,9.851e-05,2]
[421291020,1777363791992,-520.18790918,9.851e-05,2]
[421291021,1777363792033,-520.18790918,9.851e-05,2]
[421291022,1777363792075,-520.18790918,9.851e-05,2]
[421291023,1777363792112,-520.18790918,9.851e-05,2]
[421291024,1777363792151,-520.18790918,9.851e-05,2]
[421291025,1777363792188,-520.18790918,9.851e-05,2]
[421291026,1777363792225,-520.18790918,9.851e-05,2]
[421291027,1777363792262,-520.18790918,9.851e-05,2]
[421291028,1777363792297,-520.18790918,9.851e-05,2]
[421291029,1777363792334,-520.18790918,9.851e-05,2]
[421291030,1777363792371,-520.18790918,9.851e-05,2]
[421291031,1777363792407,-520.18790918,9.851e-05,2]
[421291032,1777363792443,-520.18790918,9.851e-05,2]
[421291033,1777363792480,-520.18790918,9.851e-05,2]
[421291034,1777363792516,-520.18790918,9.851e-05,2]
[421291035,1777363792549,-261.57804919,9.851e-05,2]
[421291036,1777363792585,-520.18790918,9.851e-05,2]
[421291037,1777363792624,-516.18646372,9.851e-05,2]
[421291038,1777363792660,-516.18646372,9.851e-05,2]
[421291039,1777363792696,-516.18646372,9.851e-05,2]
[421291040,1777363792733,-516.18646372,9.851e-05,2]
[421291041,1777363792769,-516.18646372,9.851e-05,2]
[421291042,1777363792804,-516.18646372,9.851e-05,2]
[421291043,1777363792838,-516.18646372,9.851e-05,2]
[421291044,1777363792873,-516.18646372,9.851e-05,2]
[421291045,1777363793088,-516.18646372,9.851e-05,2]
[421291046,1777363793125,-516.18646372,9.851e-05,2]
[421291047,1777363793163,-516.18646372,9.851e-05,2]
[421291048,1777363793199,-516.18646372,9.851e-05,2]
[421291049,1777363793234,-516.18646372,9.851e-05,2]
[421291050,1777363793274,-516.18646372,9.851e-05,2]
[421291051,1777363793309,-516.18646372,9.851e-05,2]
[421291052,1777363793343,-516.18646372,9.851e-05,2]
[421291053,1777363793377,-516.18646372,9.851e-05,2]
[421291054,1777363793412,-516.18646372,9.851e-05,2]
[421291055,1777363793446,-516.18646372,9.851e-05,2]
[421291056,1777363793492,-516.18646372,9.851e-05,2]
[421291057,1777363793532,-516.18646372,9.851e-05,2]
[421291058,1777363793569,-516.18646372,9.851e-05,2]
[421291059,1777363793604,-516.18646372,9.851e-05,2]
[421291060,1777363793641,-516.18646372,9.851e-05,2]
[421291061,1777363793677,-516.18646372,9.851e-05,2]
[421291062,1777363793715,-516.18646372,9.851e-05,2]